[Event "AUT Bundesliga 2024-25"]
[Site "Austria"]
[Date "2025.04.03"]
[Round "7.25"]
[White "Karthik Venkataraman"]
[Black "Horvath, Dominik"]
[Result "1-0"]
[Annotator "TA"]
[ECO "B45"]
[WhiteElo "2565"]
[BlackElo "2543"]
[PlyCount "67"]
[EventDate "2024.08.28"]
[EventType "team-tourn"]
[EventCountry "AUT"]
[SourceTitle "playchess.com"]
[Source "ChessBase"]
[SourceQuality "1"]
[TimeControl "40/5400+30:1800+30"]

{[%evp 12,67,22,23,30,23,22,16,23,29,43,16,27,17,30,33,20,15,15,31,18,13,72,78,87,81,83,98,96,70,82,109,111,106,152,118,187,189,195,170,155,148,228,242,243,216,239,239,380,396,632,628,629,532,626,619,786,783]} 1. e4 {[%emt 0:00:03]} c5 {[%emt 0:00:06]} 2. Nf3 {[%emt 0:00:06][%cal Bg1f3,Bf3d4,Bd4b5,Bb5c7][%mdl 32]} e6 {[%emt 0:00:04]} 3. d4 {[%emt 0:01:13]} cxd4 {[%emt 0:00:05]} 4. Nxd4 {[%emt 0:00:05]} Nc6 {[%emt 0:00:05]} 5. Nc3 {[%emt 0:01:10]} Nf6 {[%emt 0:00:05]} 6. Ndb5 {[%emt 0:00:11]} Bc5 {[%emt 0:01:47]} 7. Bf4 {[%emt 0:00:15]} O-O {[%emt 0:00:05] B45: Sicilian Four Knights.} 8. Bc7 {[%emt 0:01:18]} Qe7 {[%emt 0:00:04]} 9. Bd6 $1 {[%emt 0:00:05]} Bxd6 {[%emt 0:00:03] The position is equal.} 10. Qxd6 {[%emt 0:00:09]} Qd8 {[%emt 0:00:03]} 11. Nc7 {[%emt 0:01:42]} Rb8 {[%emt 0:00:11][%cal Ob7b5]} 12. Be2 {[%emt 0:00:10]} b5 $1 {[%emt 0:01:19]} 13. e5 $1 {[%emt 0:00:10]} (13. N3xb5 $2 Nxe4 14. Qf4 Nf6 $19 (14... d5 $2 15. c4 $17)) (13. Bxb5 Rb7 14. e5 Nh5 (14... Qxc7 15. Qxc7 Rxc7 16. exf6 $11) (14... Nxe5 15. Qxe5 Rxc7 16. O-O $15) 15. Bxc6 dxc6 $19) 13... Ne8 {[%emt 0:00:34] 13...Ne8 scores better than 13...b4.} 14. Nxe8 {[%emt 0:00:06]} b4 {[%emt 0:00:18]} 15. Ne4 {[%emt 0:08:09][%cal Oe4f6]} Rxe8 {[%emt 0:01:52]} 16. O-O {[%emt 0:00:17]} Qb6 {[%emt 0:16:09]} (16... Rb6 $11) 17. Rfd1 $16 {[%emt 0:28:28] White leaves nothing to chance now.} Ne7 {[%emt 0:02:13]} 18. Rd2 $5 $146 {[%emt 0:14:07][%mdl 8] An interesting novelty. White is much more active.} (18. a4 Qxd6 19. Nxd6 Rd8 20. Rd4 Nc6 21. Re4 f5 22. exf6 gxf6 23. Rg4+ Kf8 24. Rh4 {0-1 Hungaski,R (2511)-Tristan,L (2535) Villa Martelli ProAm op 28th 2021 (6)}) 18... Nf5 {[%emt 0:30:37]} 19. Qxb6 $40 {[%emt 0:01:47][%mdl 128] Black is in trouble.} Rxb6 {[%emt 0:00:08][%cal Bb8b6,Bb6b4,Bb4d4][%mdl 32]} 20. a4 {[%emt 0:09:02]} bxa3 {[%emt 0:09:42][%csl Oa3,Oa7,Od7] [#] and ...Bb7 should not be overlooked. Black has weak pawns. White has strong rooks and is better} 21. b3 $1 {[%emt 0:00:14]} ({Of course not} 21. Rxa3 Rxb2 22. Rxa7 Bb7 $11) (21. bxa3 $6 Bb7 22. Nc5 Bd5 $11) 21... Rb4 {[%emt 0:11:19]} 22. f3 {[%emt 0:06:12]} Bb7 {[%emt 0:10:33]} (22... f6 $142) 23. Nc5 {[%emt 0:00:38][%cal Oc2c3] and c3! should not be overlooked} Bd5 {[%emt 0:06:41]} (23... Rd4 $16 24. Bd3 Bc6 25. Rxa3 Ra8) 24. Rxa3 $18 {[%emt 0:00:16]} Rc8 {[%emt 0:02:12]} 25. Rxa7 {[%emt 0:01:36] White plays on the queen side and is better} (25. Nxd7 Rd4 (25... Rc7 26. c4 $15) 26. Rxd4 Nxd4 $17) 25... Rd4 {[%emt 0:00:15] [#]} (25... Rxc5 $2 {perishes.} 26. Rxd5 Rc8 27. Rdxd7 $18) 26. Nd3 $1 {[%emt 0:00:05]} d6 {[%emt 0:01:46]} (26... Rc3 $16) 27. exd6 {[%emt 0:07:44]} Nxd6 {[%emt 0:00:04]} 28. c4 {[%emt 0:00:04] Prevents Nb5.} Bc6 {[%emt 0:00:12]} 29. Rda2 {[%emt 0:00:07]} f6 {[%emt 0:01:23]} (29... h5 $142 30. Kf2 h4) 30. Nc5 {[%emt 0:01:38]} e5 {[%emt 0:03:09]} (30... Nf7 $142 31. b4 (31. Nxe6 Rd6 $18) 31... Nd8) 31. Ne6 {[%emt 0:00:31][%csl LRd4,LRg7] White is clearly winning.} Rh4 {[%emt 0:00:10]} 32. Rxg7+ {[%emt 0:01:06]} Kh8 {[%emt 0:00:02]} 33. Raa7 {[%emt 0:00:24]} Nf5 {[%emt 0:00:10]} 34. Rgc7 {[%emt 0:00:30] Weighted Error Value: White=0.03 (flawless) /Black=0.30  Mistake:       	---       	Black=6      Inaccurate:     	White=1     	---        OK:         	White=14    	Black=10     Best:        	White=1     	---        Strong:       	White=4     	Black=1} 1-0

[Event "AUT Bundesliga 2024-25"]
[Site "Austria"]
[Date "2025.04.03"]
[Round "7.26"]
[White "Kozak, Adam"]
[Black "Pajeken, Jakob Leon"]
[Result "1-0"]
[Annotator "TA"]
[ECO "C71"]
[WhiteElo "2598"]
[BlackElo "2435"]
[PlyCount "95"]
[EventDate "2024.08.28"]
[EventType "team-tourn"]
[EventCountry "AUT"]
[SourceTitle "playchess.com"]
[Source "ChessBase"]
[SourceQuality "1"]
[TimeControl "40/5400+30:1800+30"]

{[%evp 13,95,17,13,10,16,15,8,11,15,13,10,11,20,17,9,13,18,21,35,27,41,43,33,25,37,39,80,85,63,72,81,81,91,80,81,77,84,84,111,115,139,109,116,114,129,136,139,25,139,141,142,144,147,147,171,160,166,161,269,222,326,290,319,316,304,292,368,351,440,379,474,454,412,281,344,346,378,345,322,314,378,345,384,358]} 1. e4 {[%emt 0:00:05]} e5 {[%emt 0:00:43]} 2. Nf3 {[%emt 0:00:08]} Nc6 {[%emt 0:00:03]} 3. Bb5 {[%emt 0:00:10]} a6 {[%emt 0:02:30]} 4. Ba4 {[%emt 0:00:08]} d6 {[%emt 0:00:14]} 5. c4 {[%emt 0:02:02]} Bg4 {[%emt 0:06:53]} 6. h3 {[%emt 0:04:45]} Bxf3 {[%emt 0:00:43]} 7. Qxf3 {[%emt 0:00:03]} Nf6 {[%emt 0:01:15][%cal Bg8f6,Bf6d7,Bd7f8,Bf8e6][%mdl 32]} 8. d3 {[%emt 0:00:57] C71: Ruy Lopez: Deferred Steinitz Variation, sidelines.} Nd7 {[%emt 0:01:51]} 9. Be3 {[%emt 0:02:22]} Be7 {[%emt 0:01:57]} 10. Nc3 {[%emt 0:02:11] The position is equal.} Nf8 {[%emt 0:04:12]} 11. Nd5 {[%emt 0:32:18]} Ne6 {[%emt 0:01:52]} 12. Nb4 {[%emt 0:00:29]} Qd7 {[%emt 0:02:19]} 13. Nxc6 {[%emt 0:00:40]} bxc6 {[%emt 0:00:11]} 14. Qg4 $146 {[%emt 0:02:52] Repels Bg5} (14. Rd1 Rb8 15. b3 Nc5 16. Bxc5 dxc5 17. Qg4 g6 18. Qxd7+ Kxd7 19. Ke2 Bd6 20. f3 {½-½ Bokros,A (2482)-Brunello,S (2555) EU-Cup 33rd Antalya 2017 (2.3)}) 14... O-O {[%emt 0:10:35]} 15. O-O {[%emt 0:00:39]} Rab8 {[%emt 0:07:16]} 16. Rab1 {[%emt 0:01:52]} g6 {[%emt 0:03:59]} 17. b4 {[%emt 0:01:29]} Bf6 {[%emt 0:04:13]} 18. Rfc1 {[%emt 0:03:43]} Bg7 {[%emt 0:05:00]} 19. Qf3 {[%emt 0:01:19]} Nd4 {[%emt 0:05:19]} 20. Bxd4 {[%emt 0:05:22]} exd4 {[%emt 0:00:04] [#]} 21. e5 $1 {[%emt 0:06:18]} Rb6 {[%emt 0:09:59]} (21... dxe5 22. Bxc6) 22. exd6 {[%emt 0:07:34]} cxd6 {[%emt 0:00:14]} 23. c5 {[%emt 0:00:08]} dxc5 {[%emt 0:01:02]} 24. bxc5 {[%emt 0:00:13]} Rxb1 {[%emt 0:00:05]} 25. Rxb1 {[%emt 0:00:06]} Rc8 {[%emt 0:01:14]} 26. Rb6 {[%emt 0:04:00][%csl LRa6,LRc6]} Qe6 {[%emt 0:01:39]} 27. Bb3 {[%emt 0:03:30]} (27. Rxa6 Qxa2 28. Rxc6 (28. Bxc6 $2 Qxa6 29. Bb7 Qa1+ 30. Kh2 Rxc5 $19) 28... Re8 $11) 27... Qe1+ {[%emt 0:02:10]} 28. Kh2 {[%emt 0:00:01]} Qe5+ {[%emt 0:00:54]} 29. g3 {[%emt 0:00:06] Black is weak on the light squares} Qxc5 {[%emt 0:00:56]} 30. Qxf7+ {[%emt 0:07:03]} (30. Bxf7+ Kh8 31. Rb7 (31. Rxa6 Rf8 $17) 31... a5) 30... Kh8 {[%emt 0:00:02]} 31. Rb7 $40 {[%emt 0:00:08][%csl Gb7][%cal Rf7g7,Bb6b7,Bb7a7,Ba7a6][%mdl 160] [#] White goes for the king.} (31. Rxa6 Rf8 32. Qe6 Rxf2+ 33. Kg1 Rf8 34. Rxc6 (34. Qxc6 $2 Qe5 $19) 34... Qg5 $11) 31... Qf8 {[%emt 0:01:23]} 32. Ra7 {[%emt 0:05:36] White has more active pieces.} Qxf7 {[%emt 0:02:20]} 33. Bxf7 $16 {[%emt 0:00:02][%mdl 4096] Endgame KRB-KRB} Be5 {[%emt 0:07:47]} 34. Rxa6 {[%emt 0:01:00]} Kg7 {[%emt 0:00:31]} 35. Bc4 {[%emt 0:00:54]} Rc7 {[%emt 0:01:24]} (35... Bd6 {is a better defense.} 36. Kg2 Bc5) 36. a4 $18 {[%emt 0:03:35][%cal Ba2a4,Ba4a5,Ba5a6][%mdl 32]} Bd6 {[%emt 0:00:28]} (36... Kf8 $142 37. h4 Ke7) 37. a5 {[%emt 0:01:34]} Bc5 {[%emt 0:00:30]} 38. Ra8 {[%emt 0:00:07] Repels Rc8} Kf6 {[%emt 0:00:51]} 39. a6 {[%emt 0:01:18]} h5 {[%emt 0:01:11]} 40. Kg2 {[%emt 0:01:40]} Kf5 {[%emt 0:01:32]} 41. Re8 {[%emt 0:03:09]} Be7 {[%emt 0:01:04]} 42. Rh8 {[%emt 0:01:03]} Bc5 {[%emt 0:01:47]} 43. Kf3 {[%emt 0:00:40]} Kf6 {[%emt 0:00:27]} 44. Re8 {[%emt 0:00:17]} Kf5 {[%emt 0:01:23]} 45. Be6+ {[%emt 0:01:40]} Kf6 {[%emt 0:00:38]} 46. Rc8 {[%emt 0:05:30]} ({Don't take} 46. Bc4 Kf5 47. Ke2 (47. g4+ hxg4+ 48. hxg4+ Kf6 $18) 47... Be7 $18) 46... Rxc8 {[%emt 0:01:11]} 47. Bxc8 {[%emt 0:00:17]} Ke5 {[%emt 0:00:53]} 48. Bd7 {[%emt 0:00:17] Weighted Error Value: White=0.08 (flawless) /Black=0.21 (precise)   Mistake:       	---       	Black=2      Inaccurate:     	White=1     	Black=3      OK:         	White=20    	Black=13     Best:        	White=4     	---} 1-0

[Event "AUT Bundesliga 2024-25"]
[Site "Austria"]
[Date "2025.04.03"]
[Round "7.27"]
[White "Janzelj, Tim"]
[Black "Markus, Robert"]
[Result "1/2-1/2"]
[Annotator "TA"]
[ECO "A03"]
[WhiteElo "2404"]
[BlackElo "2595"]
[PlyCount "105"]
[EventDate "2024.08.28"]
[EventType "team-tourn"]
[EventCountry "AUT"]
[SourceTitle "playchess.com"]
[Source "ChessBase"]
[SourceQuality "1"]
[TimeControl "40/5400+30:1800+30"]

{[%evp 9,104,5,25,9,19,22,31,19,31,18,59,43,54,43,37,41,63,47,47,45,77,71,99,110,79,39,79,70,55,40,69,56,71,65,72,25,25,20,11,11,28,0,0,0,0,0,0,0,0,0,0,0,0,0,0,-29,-27,-22,-12,-19,-13,-17,-27,-30,6,6,6,6,26,6,41,5,0,1,8,19,21,0,0,0,0,0,0,0,0,0,0,0,0,0,0,0,0,0,0,0,0]} 1. f4 {[%emt 0:00:04]} d5 {[%emt 0:01:10]} 2. Nf3 {[%emt 0:00:11]} Nf6 {[%emt 0:01:45]} 3. e3 {[%emt 0:00:49]} Bg4 {[%emt 0:06:35]} 4. h3 {[%emt 0:00:53]} Bxf3 {[%emt 0:00:30]} 5. Qxf3 {[%emt 0:00:02]} c6 {[%emt 0:00:16]} 6. Nc3 {[%emt 0:03:10] A03: Bird's Opening with 1...d5.} e6 {[%emt 0:04:42]} 7. g4 {[%emt 0:01:36]} d4 $146 {[%emt 0:06:38]} (7... Be7 8. b3 Nbd7 9. g5 Ng8 10. Bb2 Qa5 11. Nb5 f6 12. Nd4 Nf8 13. h4 O-O-O {1-0 Hayward,A (1986)-Andrews,J (1650) London Classic op 2009 (6)}) 8. exd4 {[%emt 0:20:26] White is slightly better.} Qxd4 {[%emt 0:00:27]} 9. Ne2 {[%emt 0:00:25]} Qb6 {[%emt 0:08:53]} 10. b3 {[%emt 0:02:14][%cal Bb2b3,Bb3b4][%mdl 32]} Na6 {[%emt 0:05:09]} 11. a3 {[%emt 0:03:14] Against Nb4} O-O-O {[%emt 0:08:06]} 12. Bb2 {[%emt 0:01:28]} Qa5 {[%emt 0:02:10]} 13. b4 {[%emt 0:06:04]} Qd5 {[%emt 0:00:14]} 14. Qxd5 {[%emt 0:00:54] A sharp opening} exd5 {[%emt 0:00:18]} 15. g5 {[%emt 0:01:51]} Nh5 {[%emt 0:11:06]} 16. h4 {[%emt 0:05:38] [#]} Re8 {[%emt 0:02:56][%cal Oh5g3]} 17. O-O-O {[%emt 0:12:30]} Kd8 {[%emt 0:04:54]} 18. Rh3 {[%emt 0:11:49][%cal Bh1h3,Bh3f3,Bf3f7][%mdl 32]} Nc7 {[%emt 0:04:00]} 19. Rf3 {[%emt 0:03:30]} Rg8 {[%emt 0:05:07]} 20. Nd4 {[%emt 0:02:03]} g6 {[%emt 0:02:02]} 21. f5 {[%emt 0:00:46] White is more active.} Bd6 {[%emt 0:03:21]} 22. c4 {[%emt 0:04:57]} (22. d3 $16) 22... Re4 $1 $11 {[%emt 0:06:06]} 23. fxg6 {[%emt 0:03:48]} fxg6 {[%emt 0:00:07]} 24. Rf7 {[%emt 0:02:32]} (24. cxd5 Nxd5 25. Rf7 Re7 26. Rxe7 Kxe7 27. Re1+) 24... Be5 {[%emt 0:05:04]} (24... Re7 25. Rxe7 Kxe7 26. Re1+ Kd8) 25. Bh3 {[%emt 0:04:01][%cal Od4c6] [#]} Rg7 {[%emt 0:00:13]} ({Of course not} 25... Bxd4 $6 26. Rd7+ Ke8 27. Bxd4 (27. Rxc7 Bxb2+ 28. Kxb2 Rg7 $14) 27... Rxd4 28. Re1+ (28. Rxc7 Rxc4+ 29. Kb2 Rg7 $14) 28... Re4 (28... Kf8 29. Rxc7 Rxc4+ 30. Kb1 $16) 29. Rxe4+ dxe4 30. Rxc7 $16) (25... dxc4 $2 26. Nxc6+ bxc6 27. Bxe5 (27. Rxh7 $2 {loses.} Bxb2+ 28. Kxb2 Rg7 $19) (27. Rd7+ Ke8 $11) 27... Rxe5 28. Rd7+ Kc8 29. Rg7+ (29. Rxh7+ $2 Kb7 $19) 29... Kb7 30. Rxg8 $18) 26. Rxc7 {[%emt 0:05:36]} Kxc7 {[%emt 0:01:37]} 27. Ne6+ {[%emt 0:00:02]} Kd6 {[%emt 0:00:47]} 28. c5+ {[%emt 0:00:59]} Ke7 {[%emt 0:00:05]} 29. Bxe5 {[%emt 0:00:13]} Rxe5 {[%emt 0:00:13]} 30. Nxg7 {[%emt 0:00:05]} Nxg7 {[%emt 0:00:09][%mdl 4096] Endgame KRB-KRN} 31. Bc8 {[%emt 0:00:35]} b6 {[%emt 0:06:01]} 32. Kc2 {[%emt 0:00:05]} Kd8 {[%emt 0:04:05]} 33. Bg4 {[%emt 0:03:38]} Re4 {[%emt 0:00:20]} 34. Rg1 {[%emt 0:00:14]} bxc5 {[%emt 0:00:21]} 35. d3 {[%emt 0:00:22]} Rf4 {[%emt 0:00:27]} 36. bxc5 {[%emt 0:00:02]} Nf5 {[%emt 0:01:54]} 37. Bxf5 {[%emt 0:00:08]} Rxf5 {[%emt 0:00:15] KR-KR} 38. Rg4 {[%emt 0:00:01]} Kc7 {[%emt 0:00:31]} 39. Kc3 {[%emt 0:00:24]} Rf1 {[%emt 0:00:40]} 40. Kd4 {[%emt 0:01:42]} Kd7 {[%emt 0:00:08] The position is equal.} 41. Ke3 {[%emt 0:06:29]} Ke6 {[%emt 0:03:58]} 42. Ra4 {[%emt 0:03:52]} Rf7 {[%emt 0:00:15]} 43. Ra6 {[%emt 0:06:02]} Rc7 {[%emt 0:00:06]} 44. Kf4 {[%emt 0:00:17]} Rf7+ {[%emt 0:00:28]} 45. Kg4 {[%emt 0:01:34]} Ke5 {[%emt 0:05:01]} 46. Rxc6 {[%emt 0:02:01]} Rf4+ {[%emt 0:00:05]} 47. Kg3 {[%emt 0:00:08][%cal Oc6e6] Black must now prevent Re6+!.} Rd4 {[%emt 0:00:12]} 48. Ra6 {[%emt 0:06:38]} Rxd3+ {[%emt 0:00:06]} 49. Kf2 {[%emt 0:01:29]} Rc3 {[%emt 0:02:00]} 50. Rxa7 {[%emt 0:00:34]} Rxc5 {[%emt 0:00:07]} 51. Rxh7 {[%emt 0:00:44]} Rc2+ {[%emt 0:06:27]} 52. Ke1 {[%emt 0:03:49]} Ra2 {[%emt 0:00:17]} 53. h5 {[%emt 0:01:33] Weighted Error Value: White=0.07 (flawless) /Black=0.09 (flawless)   Mistake:       	White=1     	---        Inaccurate:     	White=4     	Black=7      OK:         	White=27    	Black=20     Best:        	---       	Black=3      Strong:       	---       	Black=1} 1/2-1/2

[Event "AUT Bundesliga 2024-25"]
[Site "Austria"]
[Date "2025.04.03"]
[Round "7.28"]
[White "Korpa, Bence"]
[Black "Sebenik, Matej"]
[Result "1/2-1/2"]
[Annotator "TA"]
[ECO "D05"]
[WhiteElo "2543"]
[BlackElo "2491"]
[PlyCount "63"]
[EventDate "2024.08.28"]
[EventType "team-tourn"]
[EventCountry "AUT"]
[SourceTitle "playchess.com"]
[Source "ChessBase"]
[SourceQuality "1"]
[TimeControl "40/5400+30:1800+30"]

{[%evp 11,63,13,19,21,18,23,18,17,13,8,18,17,19,6,31,6,0,5,25,6,41,18,13,10,19,13,15,-15,-14,-21,-14,-14,-19,-12,-12,-15,0,-16,-19,-13,-23,-20,0,0,0,0,0,0,0,0,0,0,0,0]} 1. Nf3 {[%emt 0:00:04]} d5 {[%emt 0:00:10]} 2. e3 {[%emt 0:00:11]} Nf6 {[%emt 0:00:04]} 3. b3 {[%emt 0:00:15]} e6 {[%emt 0:00:04]} 4. Bb2 {[%emt 0:00:18]} c5 {[%emt 0:00:03]} 5. d4 {[%emt 0:00:41]} Nc6 {[%emt 0:00:09]} 6. Nbd2 {[%emt 0:00:25]} Bd6 {[%emt 0:00:58]} 7. dxc5 $1 {[%emt 0:00:33][%mdl 4] outshines the older 7.Bd3. D05: Colle System with ...e6.} Bxc5 {[%emt 0:00:03]} 8. a3 {[%emt 0:00:15]} O-O {[%emt 0:07:27][%cal Oe6e5]} 9. b4 {[%emt 0:01:48]} Be7 {[%emt 0:02:03]} 10. Bd3 {[%emt 0:04:04]} b6 {[%emt 0:08:53]} 11. c4 {[%emt 0:17:10]} Bb7 {[%emt 0:04:05]} 12. O-O {[%emt 0:00:20]} dxc4 {[%emt 0:04:35]} 13. Bxc4 {[%emt 0:02:28]} Rc8 {[%emt 0:04:23]} 14. Rc1 {[%emt 0:12:47]} Nb8 $146 {[%emt 0:15:36]} (14... Nd5 15. Qe2 Bf6 16. Ne4 Bxb2 17. Qxb2 Qe7 18. Rfd1 Rfd8 19. Bxd5 exd5 20. Ng3 f6 {1-0 Maly,A (2371)-Peycheva,G (2255) Titled Tuesday intern op 16th June blitz 2020 (7)}) 15. Qb3 {[%emt 0:03:01]} Bd5 {[%emt 0:14:45][%cal Oc8c4]} 16. Bxf6 {[%emt 0:01:40]} Bxf6 {[%emt 0:00:36]} 17. Bxd5 {[%emt 0:00:17]} Qxd5 {[%emt 0:00:04]} 18. Qxd5 {[%emt 0:08:09]} exd5 {[%emt 0:00:04]} 19. Nd4 {[%emt 0:06:38]} Bxd4 {[%emt 0:05:17]} 20. exd4 {[%emt 0:00:06]} Nc6 {[%emt 0:00:05]} 21. Nf3 {[%emt 0:01:09]} f6 {[%emt 0:00:08]} 22. Rfe1 {[%emt 0:07:37] Prevents Ne7} Kf7 {[%emt 0:01:21]} 23. Kf1 {[%emt 0:03:29]} g5 {[%emt 0:06:00]} 24. Ke2 {[%emt 0:17:47]} g4 {[%emt 0:08:32]} 25. Nh4 {[%emt 0:00:07]} Nxd4+ {[%emt 0:00:03]} 26. Kd3 {[%emt 0:00:04]} Nc6 {[%emt 0:01:38] The position is equal.} 27. Nf5 {[%emt 0:04:23] [#] And now Nd6+ would win.} Ne5+ {[%emt 0:08:57]} 28. Kd4 {[%emt 0:00:07]} Ke6 {[%emt 0:01:25]} 29. Ng7+ {[%emt 0:01:29]} Kd6 {[%emt 0:01:30]} 30. Nf5+ {[%emt 0:00:43]} Ke6 {[%emt 0:00:02]} 31. Ng7+ {[%emt 0:02:32]} Kd6 {[%emt 0:00:04]} 32. Nf5+ {[%emt 0:00:40] An even fight not without its subleties.   Weighted Error Value: White=0.06 (flawless) /Black=0.06 (flawless)   Inaccurate:     	White=1     	Black=1      OK:         	White=8     	Black=12     Best:        	White=5     	---} 1/2-1/2

[Event "AUT Bundesliga 2024-25"]
[Site "Austria"]
[Date "2025.04.03"]
[Round "7.29"]
[White "Schreiner, Peter"]
[Black "Subelj, Jan"]
[Result "1-0"]
[Annotator "TA"]
[ECO "D02"]
[WhiteElo "2425"]
[BlackElo "2528"]
[PlyCount "101"]
[EventDate "2024.08.28"]
[EventType "team-tourn"]
[EventCountry "AUT"]
[SourceTitle "playchess.com"]
[Source "ChessBase"]
[SourceQuality "1"]
[TimeControl "40/5400+30:1800+30"]

{[%evp 13,100,0,0,2,-3,-4,0,-23,-18,-30,-20,-22,12,13,16,4,14,11,24,9,29,22,62,61,81,68,84,90,82,87,132,127,175,186,244,247,234,229,239,234,218,152,276,255,285,285,272,250,246,243,327,318,316,312,322,321,361,359,483,474,500,483,510,487,459,440,420,410,454,450,493,365,365,338,514,443,840,833,814,785,1146,1098,29978,29979,29992,477,29993,29991,29999]} 1. Nf3 {[%emt 0:00:04]} d5 {[%emt 0:00:27]} 2. g3 {[%emt 0:00:09]} g6 {[%emt 0:00:54]} 3. Bg2 {[%emt 0:03:39]} Bg7 {[%emt 1:30:39]} 4. d4 {[%emt 0:02:51]} c6 {[%emt 0:00:00]} 5. O-O {[%emt 0:00:30]} Nf6 {[%emt 0:00:00]} 6. c3 {[%emt 0:04:05]} O-O {[%emt 0:00:00]} 7. Bf4 {[%emt 0:07:45]} Nbd7 {[%emt 0:00:00]} 8. a4 {[%emt 0:01:25] D02: 1 d4 d5 2 Nf3 sidelines, including 2...Nf6 3 g3 and 2...Nf6 3 Bf4.} a5 {[%emt 0:00:00]} 9. Nbd2 {[%emt 0:04:44]} h6 {[%emt 0:00:00]} 10. Ne5 {[%emt 0:05:17] The position is equal.} g5 {[%emt 0:00:00]} 11. Nxd7 $1 {[%emt 0:00:33]} Nxd7 {[%emt 0:00:00]} 12. Be3 {[%emt 0:00:14]} e5 $146 {[%emt 0:00:00]} (12... f5 13. f4 g4 14. Nb3 Nf6 15. Nc5 h5 16. Nd3 h4 17. gxh4 Nh5 18. Bf2 e6 {1-0 Banusz,T (2591)-Kantor,G (2575) HUN-ch 69th Budapest 2021 (8)}) 13. dxe5 {[%emt 0:01:08]} Nxe5 {[%emt 0:00:00]} 14. Bd4 {[%emt 0:03:01]} f5 {[%emt 0:00:00][%cal Bf7f5,Bf5f4][%mdl 32]} 15. Nf3 {[%emt 0:08:26]} Nxf3+ {[%emt 0:00:00]} 16. exf3 {[%emt 0:03:55]} f4 {[%emt 0:00:00]} 17. Re1 {[%emt 0:08:41]} Rf7 {[%emt 0:00:00]} 18. Bxg7 {[%emt 0:04:24]} Kxg7 {[%emt 0:00:00] White now steadily converts the win.} 19. Qd4+ {[%emt 0:00:52]} Qf6 {[%emt 0:00:00]} 20. Re5 {[%emt 0:01:48] White is more active.} Bd7 {[%emt 0:00:00]} 21. Rae1 {[%emt 0:02:53]} Kg8 {[%emt 0:00:00] [#]} 22. g4 $1 {[%emt 0:02:38]} Rff8 {[%emt 0:00:00]} (22... Rb8 $16 23. Bf1 b6) 23. Bf1 $18 {[%emt 0:08:54]} Qg7 {[%emt 0:00:00]} (23... Qd6 $142 24. Qb6 Rf7) 24. Qb6 {[%emt 0:07:24]} Rae8 {[%emt 0:00:00]} 25. Rxe8 {[%emt 0:00:51]} Rxe8 {[%emt 0:00:00]} 26. Rxe8+ {[%emt 0:01:35]} Bxe8 {[%emt 0:00:00]} 27. Qxa5 {[%emt 0:00:17][%mdl 4096] Endgame KQB-KQB. White is a pawn up.} Bg6 {[%emt 0:00:00]} (27... Qe7 $16 28. Qb6 h5) 28. Qd8+ {[%emt 0:02:48]} Qf8 {[%emt 0:00:00]} 29. Qc7 {[%emt 0:01:25]} Qf7 {[%emt 0:00:00]} 30. Qd6 {[%emt 0:00:44]} Kg7 {[%emt 0:00:00]} 31. a5 {[%emt 0:01:00]} Bc2 {[%emt 0:00:00]} 32. a6 {[%emt 0:04:45]} bxa6 {[%emt 0:00:00][%cal Bb7a6,Ba6a5,Ba5a4][%mdl 32]} 33. Qxc6 {[%emt 0:00:07]} a5 {[%emt 0:00:00]} 34. Qc5 {[%emt 0:02:39]} a4 {[%emt 0:00:00]} 35. Qd4+ {[%emt 0:01:03]} Kf8 {[%emt 0:00:00]} 36. Bb5 {[%emt 0:02:40]} Qg6 {[%emt 0:00:00]} 37. Qxd5 {[%emt 0:01:02]} (37. Bxa4 Bxa4 38. Qxa4 Qb1+ 39. Kg2 Qxb2 $18) 37... Bb3 {[%emt 0:00:00]} 38. Qd8+ {[%emt 0:01:01]} Kg7 {[%emt 0:00:00]} 39. Bd3 {[%emt 0:00:32]} Qe6 {[%emt 0:00:00]} 40. Qd4+ {[%emt 0:00:45]} Kf7 {[%emt 0:00:00]} 41. Be4 {[%emt 0:05:17]} Ke7 {[%emt 0:00:00]} 42. Kg2 {[%emt 0:03:22]} Qd6 {[%emt 0:00:00]} 43. Qg7+ {[%emt 0:06:08]} Kd8 {[%emt 0:00:00]} (43... Bf7 $142 44. Bc2 Qc6 45. Qe5+ Kf8) 44. h4 {[%emt 0:00:55]} Qd2 {[%emt 0:00:00]} (44... gxh4 $142 45. Qb7 Ke8) 45. hxg5 {[%emt 0:05:15]} hxg5 {[%emt 0:00:00]} 46. Qxg5+ {[%emt 0:00:06]} Ke8 {[%emt 0:00:00]} 47. Qf6 {[%emt 0:01:53] [#] Threatening mate with Bc6+.} Bf7 {[%emt 0:01:05]} 48. g5 {[%emt 0:01:29]} Qxb2 {[%emt 0:03:18]} 49. Bc6+ {[%emt 0:00:15]} Kf8 {[%emt 0:00:06]} 50. Bd5 {[%emt 0:00:09][%csl Gd5][%cal Rf6f7]} a3 {[%emt 0:00:48]} 51. Qxf7# {[%emt 0:12:37] Weighted Error Value: White=0.10 (very precise) /Black=0.74  Mistake:       	---       	Black=5      Inaccurate:     	White=1     	Black=5      OK:         	White=21    	Black=7      Best:        	White=2     	Black=2      Strong:       	White=2     	---} 1-0